bitfinex-derivatives/quotes_SOLF0:USTF0_20250224
["timestamp","ask_amount","ask_price","bid_price","bid_amount"]
[1740396488495,19.02,158.57,158.45,35.76624918]
[1740396488894,19.02,158.57,158.44,35.76624918]
[1740396489296,0.04266288,158.52,158.49,0.04091173]
[1740396489798,6.308,158.5,158.49,0.04091173]
[1740396491091,0.04266288,158.52,158.49,0.04091173]
[1740396491298,6.3074,158.51,158.49,0.04091173]
[1740396492299,6.3077,158.5,158.49,0.04091173]
[1740396492500,0.04266288,158.52,158.49,0.04091173]
[1740396492700,0.04266288,158.52,158.51,35.76624918]
[1740396493701,191.0,158.58,158.51,35.76624918]
[1740396494000,191.0,158.58,158.48,35.76624918]
[1740396494001,0.4378,158.62,158.54,35.76624918]
[1740396494201,6.3051,158.57,158.54,35.76624918]
[1740396494398,0.4378,158.62,158.54,35.76624918]
[1740396494802,0.0439039,158.6,158.56,0.04318378]
[1740396495099,19.02,158.58,158.45,35.76624918]
[1740396495293,191.0,158.59,158.45,35.76624918]
[1740396495294,19.02,158.56,158.45,35.76624918]
[1740396495491,6.308,158.5,158.45,42.07584918]
[1740396495900,19.02,158.56,158.45,42.07584918]
[1740396496102,6.3082,158.49,158.45,42.07584918]
[1740396496502,6.35034973,158.49,158.45,42.11758862]
[1740396497002,6.35034973,158.49,158.45,35.80798862]
[1740396497402,6.3086,158.48,158.45,35.80798862]
[1740396497603,0.04214973,158.49,158.45,0.04173944]
[1740396498099,6.3091,158.47,158.45,0.04173944]
[1740396500309,0.04214973,158.49,158.45,0.04173944]
[1740396500509,6.3093,158.46,158.45,0.04173944]
[1740396500708,0.04214973,158.49,158.45,0.04173944]
[1740396500910,0.04214973,158.49,158.45,35.80798862]
[1740396501612,0.04214973,158.49,158.48,35.76624918]
[1740396501810,10.44,158.61,158.51,35.76624918]
[1740396502208,6.3058,158.55,158.51,35.76624918]
[1740396502414,19.02,158.61,158.51,35.76624918]
[1740396502614,19.02,158.59,158.51,35.76624918]
[1740396502815,6.3062,158.54,158.51,35.76624918]
[1740396503015,6.3062,158.54,158.53,0.04571108]
[1740396505314,0.04028471,158.57,158.53,0.04571108]
[1740396505812,0.04028471,158.57,158.55,6.3056]
[1740396506016,0.04028471,158.57,158.54,35.76624918]
[1740396506215,50.0754143,158.64,158.54,35.76624918]
[1740396506415,69.0954143,158.64,158.54,35.76624918]
[1740396506814,6.3034,158.61,158.57,6.3049]
[1740396507115,69.0954143,158.64,158.54,35.76624918]
[1740396507317,69.0954143,158.64,158.57,0.04223249]
[1740396508019,6.304,158.6,158.57,0.04223249]
[1740396508418,0.5116,158.71,158.57,35.80848167]
[1740396508714,0.5116,158.71,158.58,1.9039]
[1740396508921,0.5116,158.71,158.61,0.04749586]
[1740396509122,6.3027,158.63,158.61,0.04749586]
[1740396509320,19.5316,158.71,158.61,0.04749586]
[1740396509826,6.3017,158.66,158.62,6.3029]
[1740396510120,19.5316,158.71,158.61,0.04749586]
[1740396510313,19.5316,158.71,158.61,6.35059586]
[1740396510620,19.5316,158.71,158.61,0.04749586]
[1740396510824,19.71401169,158.68,158.61,0.04749586]
[1740396511119,19.02,158.66,158.61,0.04749586]
[1740396511319,6.3029,158.62,158.61,0.04749586]
[1740396511621,0.69401169,158.68,158.61,0.04749586]
[1740396511919,0.69401169,158.68,158.61,2.01429586]
[1740396512121,0.69401169,158.68,158.61,3.89549586]
[1740396512921,6.99461169,158.68,158.61,3.89549586]
[1740396513519,6.3012,158.67,158.62,6.3029]
[1740396513718,0.69401169,158.68,158.61,3.89549586]
[1740396514019,6.302,158.65,158.61,3.89549586]
[1740396514818,6.3024,158.64,158.61,3.89549586]
[1740396515022,0.69401169,158.68,158.61,0.04749586]
[1740396515421,6.3029,158.62,158.61,0.04749586]
[1740396516720,6.3029,158.62,158.61,9.586e-05]
[1740396517028,25.3229,158.62,158.61,9.586e-05]
[1740396519429,26.44527169,158.62,158.61,9.586e-05]
[1740396521124,26.44537254,158.62,158.61,9.586e-05]
[1740396521826,19.02,158.61,158.43,35.76624918]
[1740396522027,19.02,158.53,158.41,5.7792]
[1740396522229,19.02,158.51,158.41,5.7792]
[1740396522630,19.02,158.51,158.41,12.0904]
[1740396522930,6.31,158.45,158.44,0.04584043]
[1740396525435,6.3094,158.46,158.44,0.04584043]
[1740396525634,0.04363797,158.48,158.44,0.04584043]
[1740396525834,29.46,158.55,158.44,35.81208961]
[1740396526027,0.5461,158.57,158.44,35.76624918]
[1740396527033,73.4950681,158.69,158.56,71.53249836]
[1740396527234,214.23695456,158.72,158.56,71.53249836]
[1740396527235,137.61662555,158.71,158.68,35.76624918]
[1740396527437,128.13682555,158.71,158.69,6.3001]
[1740396527734,128.13682555,158.71,158.7,35.76624918]
[1740396528236,66.13682555,158.71,158.7,71.53249836]
[1740396528733,44.42772555,158.71,158.7,71.53249836]
[1740396528933,9.95592555,158.71,158.7,71.53249836]
[1740396529240,191.0,158.95,158.7,272.45874754]
[1740396529540,1.9391,158.94,158.85,35.76624918]
[1740396529735,1.9391,158.94,158.85,57.83246065]
[1740396530133,1.9391,158.94,158.86,0.04278151]
[1740396530833,19.02,158.93,158.86,0.04278151]
[1740396531226,1.9391,158.94,158.86,0.04278151]
[1740396531634,1.9391,158.94,158.89,34.16437311]
[1740396532137,1.9391,158.94,158.9,0.04308533]
[1740396532636,3.7915,158.98,158.9,0.04308533]
[1740396533436,6.29,158.95,158.9,0.04308533]
[1740396533634,25.31,158.95,158.9,0.04308533]
[1740396533935,19.02,158.97,158.9,0.04308533]
[1740396534136,25.3105,158.94,158.9,0.04308533]
[1740396534536,19.02,158.94,158.9,0.04308533]
[1740396534736,6.2906,158.93,158.82,57.83246065]
[1740396534937,19.02,158.94,158.82,57.83246065]
[1740396535133,1.8936,158.93,158.82,57.83246065]
[1740396535438,19.02,158.97,158.85,57.83246065]
[1740396535842,19.02,158.97,158.88,57.83246065]
[1740396536037,0.04622615,158.93,158.89,0.04374295]
[1740396537837,0.04622615,158.93,158.83,8.47080759]
[1740396538038,267.85246065,158.97,158.83,8.47080759]
[1740396539041,0.04132437,158.92,158.88,0.04819298]
[1740396539438,6.292,158.9,158.88,0.04819298]
[1740396540242,6.293,158.88,158.84,7.07792635]
[1740396540444,19.02,158.93,158.84,7.07792635]
[1740396540642,19.02,158.9,158.84,7.07792635]
[1740396540839,6.2938,158.85,158.84,4.06802635]
[1740396541344,6.2938,158.85,158.84,25.69356552]
[1740396542043,6.2938,158.85,158.84,19.67296552]
[1740396542443,6.2938,158.85,158.84,9.21046552]
[1740396542742,25.35625346,158.86,158.82,66.25430303]
[1740396542944,0.04285346,158.86,158.82,66.25430303]
[1740396543844,0.04285346,158.86,158.82,66.2972147]
[1740396544040,0.04285346,158.86,158.82,0.04291167]
[1740396545447,25.35665346,158.86,158.82,0.04291167]
[1740396546549,6.2939,158.85,158.82,0.04291167]
[1740396549742,25.3139,158.85,158.82,0.04291167]
[1740396550046,6.2943,158.84,158.82,0.04291167]
[1740396550348,29.64,158.84,158.69,44.99801311]
[1740396550547,29.64,158.84,158.73,6.2985]
[1740396551439,6.2954,158.81,158.73,6.2985]
[1740396551639,6.2954,158.81,158.77,0.0439482]
[1740396551640,0.04498511,158.8,158.77,0.0439482]
[1740396552245,19.06498511,158.8,158.77,0.0439482]
[1740396552450,0.04498511,158.8,158.68,1.8755]
[1740396552639,0.04498511,158.8,158.68,3.7582]
[1740396552843,6.2963,158.79,158.72,64.13136065]
[1740396553151,0.04498511,158.8,158.72,57.83246065]
[1740396553544,0.04498511,158.8,158.74,0.03978613]
[1740396554050,6.2963,158.79,158.74,0.03978613]
[1740396554649,6.2967,158.78,158.74,0.03978613]
[1740396555150,0.04498511,158.8,158.74,0.03978613]
[1740396555843,6.2978,158.75,158.74,0.03978613]
[1740396558047,19.02,158.75,158.66,35.64743325]
[1740396558254,6.2999,158.7,158.66,35.64743325]
[1740396559051,19.02,158.79,158.66,35.64743325]
[1740396559253,0.04300117,158.7,158.66,0.04348489]
[1740396559449,19.02,158.74,158.63,39.41863325]
[1740396559642,6.301,158.67,158.66,0.04333813]
[1740396563254,6.301,158.67,158.66,3.813e-05]
[1740396565057,25.321,158.67,158.66,3.813e-05]
[1740396565255,6.301,158.67,158.66,3.813e-05]
[1740396566754,6.3007,158.68,158.66,3.813e-05]
[1740396567053,0.04235687,158.7,158.66,35.64747138]
[1740396568253,6.3002,158.69,158.66,35.64747138]
[1740396568461,0.04235687,158.7,158.66,35.64747138]
[1740396568660,0.04235687,158.7,158.66,3.813e-05]
[1740396568962,6.3008,158.68,158.66,3.813e-05]
[1740396569555,6.301,158.67,158.66,3.813e-05]
[1740396577056,19.02,158.85,158.66,35.64747138]
[1740396577257,12.5827,158.92,158.78,35.64743325]
[1740396577258,1.8254,158.92,158.78,35.64743325]
[1740396577465,1.8833,158.91,158.82,6.2949]
[1740396577662,1.8833,158.91,158.81,35.64743325]
[1740396578162,0.04320423,158.88,158.84,0.0479879]
[1740396579359,6.2934,158.86,158.84,0.0479879]
[1740396579963,19.02,158.86,158.84,0.0479879]
[1740396580164,6.2938,158.85,158.84,0.0479879]
[1740396580559,10.66320423,158.88,158.84,0.0479879]
[1740396580767,6.2935,158.86,158.84,0.0479879]
[1740396581466,6.2938,158.85,158.84,0.0479879]
[1740396582063,29.68320423,158.88,158.75,6.2977]
[1740396582264,65.28743325,158.88,158.73,35.64743325]
[1740396582661,19.02,158.84,158.72,6.2989]
[1740396582866,6.2962,158.79,158.72,6.2989]
[1740396583273,0.04466799,158.77,158.74,0.04642922]
[1740396585169,6.34176799,158.77,158.74,0.04642922]
[1740396585376,0.04466799,158.77,158.74,0.04642922]
[1740396585676,6.2978,158.75,158.74,0.04642922]
[1740396586370,0.04466799,158.77,158.74,0.04642922]
[1740396586574,6.2975,158.76,158.74,0.04642922]
[1740396586771,0.04466799,158.77,158.74,0.04642922]
[1740396587172,6.2978,158.75,158.74,0.04642922]
[1740396587771,6.2978,158.75,158.74,2.922e-05]
[1740396592185,25.3178,158.75,158.74,2.922e-05]
[1740396592385,27.2906,158.75,158.74,2.922e-05]
[1740396593383,62.93803325,158.75,158.74,2.922e-05]
[1740396595690,6.3033,158.61,158.6,1.9277]
[1740396596783,0.04466935,158.62,158.6,1.9277]
[1740396596983,10.54,158.69,158.6,1.9277]
[1740396597282,0.04384151,158.63,158.6,1.9277]
[1740396597682,0.04384151,158.63,158.6,1.97024269]
[1740396597884,6.3033,158.62,158.6,1.97024269]
[1740396598487,0.04384151,158.63,158.6,1.97024269]
[1740396598488,1.8287,158.74,158.6,1.97024269]
[1740396598683,1.8287,158.74,158.64,35.64743325]
[1740396598985,6.3008,158.68,158.64,41.94953325]
[1740396599487,6.3008,158.68,158.65,6.3017]
[1740396599685,6.34629681,158.68,158.65,6.3017]
[1740396599881,6.3015,158.66,158.64,35.69138874]
[1740396600278,1.9728,158.75,158.64,35.69138874]
[1740396600588,223.33483325,158.79,158.64,35.64743325]
[1740396600784,1.8622,158.78,158.64,35.64743325]
[1740396600986,33.4754,158.78,158.64,35.64743325]
[1740396601588,6.2998,158.7,158.69,0.04380601]
[1740396601989,6.2998,158.7,158.69,6.01e-06]
[1740396607391,6.3042,158.59,158.55,37.57523325]
[1740396607596,18.4259,158.69,158.55,39.50543325]
[1740396607795,5.8254,158.69,158.55,39.50543325]
[1740396608290,19.02,158.68,158.55,39.50543325]
[1740396608494,0.04047922,158.64,158.6,0.04677789]
[1740396608996,6.3033,158.61,158.6,0.04677789]
[1740396610788,6.3033,158.61,158.6,7.789e-05]
[1740396611686,25.3233,158.61,158.6,7.789e-05]
[1740396611885,54.66743325,158.61,158.49,3.807]
[1740396612087,54.66743325,158.61,158.49,1.9007]
[1740396612088,6.3077,158.5,158.49,1.9007]
[1740396613693,0.04671392,158.51,158.48,0.04348766]
[1740396613902,6.3081,158.49,158.48,0.04348766]
[1740396615600,6.3081,158.49,158.48,8.766e-05]
[1740396620909,19.02,158.49,158.36,35.64743325]
[1740396621107,19.02,158.49,158.37,8.263]
[1740396621406,10.46,158.48,158.37,8.263]
[1740396621612,6.3117,158.41,158.37,8.263]
[1740396621809,10.46,158.48,158.37,8.263]
[1740396622007,6.35180601,158.41,158.37,8.30698173]
[1740396622208,6.35180601,158.41,158.37,8.263]
[1740396622403,6.35180601,158.41,158.37,8.30577821]
[1740396622601,6.3122,158.39,158.37,1.99287821]
[1740396622804,0.04040601,158.41,158.37,1.99287821]
[1740396623610,0.04040601,158.41,158.38,35.64743325]
[1740396623811,0.04040601,158.41,158.37,1.99287821]
[1740396624713,0.04040601,158.41,158.4,6.3117]
[1740396625014,0.04040601,158.41,158.37,1.99287821]
[1740396626112,0.04040601,158.41,158.37,8.30567821]
[1740396626612,0.04040601,158.41,158.37,1.99287821]
[1740396626814,10.46,158.51,158.39,35.64743325]
[1740396627114,10.46,158.51,158.4,2.0007]
[1740396628110,0.04403284,158.47,158.44,0.04268413]
[1740396628414,6.31,158.45,158.44,0.04268413]
[1740396631818,6.31,158.45,158.44,8.413e-05]
[1740396635118,0.04403284,158.47,158.44,8.413e-05]
[1740396635314,35.64743325,158.58,158.44,35.64751738]
[1740396635512,10.44,158.6,158.47,35.64743325]
[1740396636119,35.64743325,158.58,158.47,35.64743325]
[1740396636323,6.3071,158.52,158.51,0.04125153]
[1740396639618,6.3071,158.52,158.51,5.153e-05]
[1740396639822,35.64743325,158.52,158.42,3.744]
[1740396640017,35.64743325,158.49,158.41,33.65243569]
[1740396640422,6.3108,158.43,158.41,33.65243569]
[1740396640623,35.64743325,158.49,158.41,33.65243569]
[1740396641014,0.03994894,158.47,158.43,0.04522386]
[1740396643822,6.3097,158.46,158.43,0.04522386]
[1740396644025,0.03994894,158.47,158.43,0.04522386]
[1740396644725,6.3101,158.44,158.43,0.04522386]
[1740396647228,6.3121,158.39,158.38,8.3867295]
[1740396647527,6.3121,158.39,158.38,2.95e-05]
[1740396648130,1.9293,158.42,158.37,2.211e-05]
[1740396648426,35.64743325,158.4,158.38,0.04301431]
[1740396649125,0.04670299,158.41,158.38,0.04301431]
[1740396649826,6.35830299,158.41,158.38,0.04301431]
[1740396650126,0.04670299,158.41,158.38,0.04301431]
[1740396654523,0.04670299,158.41,158.38,6.35521431]
[1740396655629,0.04670299,158.41,158.38,0.04301431]
[1740396657627,6.35800299,158.41,158.38,0.04301431]
[1740396657832,19.06670299,158.41,158.27,37.60033325]
[1740396658028,56.65023325,158.4,158.27,1.9529]
[1740396658228,10.38,158.39,158.27,1.9529]
[1740396658430,35.64743325,158.37,158.27,1.9529]
[1740396658628,41.96053325,158.37,158.27,8.2694]
[1740396659133,0.04041483,158.34,158.3,0.04183681]
[1740396659834,6.35471483,158.34,158.3,0.04183681]
[1740396660130,35.68784808,158.34,158.3,0.04183681]
[1740396660433,6.3152,158.32,158.3,0.04183681]
[1740396662535,6.3152,158.32,158.23,8.1668]
[1740396663035,6.3154,158.31,158.23,6.3181]
[1740396663241,8.3138,158.31,158.23,6.3181]
[1740396663632,0.04422706,158.29,158.25,0.04217372]
[1740396665041,6.36032706,158.29,158.25,0.04217372]
[1740396665341,0.04422706,158.29,158.25,0.04217372]
[1740396665641,6.3168,158.28,158.25,0.04217372]
[1740396666031,0.04422706,158.29,158.25,0.04217372]
[1740396667942,0.04422706,158.29,158.28,22.42909166]
[1740396668334,10.36,158.37,158.28,22.42909166]
[1740396668335,16.673,158.37,158.28,22.42909166]
[1740396668537,22.42909166,158.42,158.3,22.42909166]
[1740396668734,24.39549166,158.44,158.32,22.42909166]
[1740396669039,6.3109,158.43,158.34,22.42909166]
[1740396669444,0.04194677,158.4,158.37,0.0461269]
[1740396671142,6.35374677,158.4,158.37,0.0461269]
[1740396671337,0.04194677,158.4,158.37,0.0461269]
[1740396671835,6.3125,158.38,158.37,0.0461269]
[1740396672039,0.04194677,158.4,158.26,3.7761]
[1740396672242,35.8313606,158.41,158.26,39.6074606]
[1740396672437,1.12356266,158.4,158.26,39.6074606]
[1740396672742,35.8313606,158.41,158.29,6.3157]
[1740396673139,29.42,158.43,158.26,39.6074606]
[1740396673140,35.8313606,158.38,158.26,39.6074606]
[1740396673339,1.92160582,158.37,158.33,0.04027387]
[1740396673534,0.04397853,158.34,158.23,35.8313606]
[1740396673740,1.8237,158.36,158.33,0.04027387]
[1740396673938,0.04608194,158.3,158.23,35.8313606]
[1740396674140,6.3158,158.3,158.23,35.8313606]
[1740396674448,0.04107545,158.28,158.26,6.3169]
[1740396674639,6.316,158.3,158.26,6.3169]
[1740396674835,0.0445547,158.29,158.26,6.3169]
[1740396675041,0.0445547,158.29,158.25,0.04027387]
[1740396676545,6.3609547,158.29,158.25,6.35787387]
[1740396676749,0.0445547,158.29,158.25,0.04027387]
[1740396677245,6.3168,158.28,158.25,0.04027387]
[1740396677435,0.0445547,158.29,158.25,0.04027387]
[1740396677638,6.3166,158.28,158.25,0.04027387]
[1740396679542,6.3166,158.28,158.25,6.35767387]
[1740396680044,6.3166,158.28,158.25,0.04027387]
[1740396680439,6.3166,158.28,158.25,6.35797387]
[1740396680645,6.3607547,158.29,158.25,0.04027387]
[1740396680950,0.0445547,158.29,158.25,0.04027387]
[1740396681248,6.3607547,158.29,158.25,6.35767387]
[1740396681450,0.0445547,158.29,158.25,0.04027387]
[1740396681845,6.3171,158.27,158.25,0.04027387]
[1740396682045,0.0445547,158.29,158.25,0.04027387]
[1740396682342,6.3173,158.26,158.25,0.04027387]
[1740396683555,6.3187,158.23,158.19,6.3198]
[1740396684551,1.9798,158.28,158.18,63.34953912]
[1740396684747,5.045e-05,158.23,158.21,35.8313606]
[1740396684955,1.8519,158.34,158.21,35.8313606]
[1740396685153,6.3154,158.31,158.28,6.3163]
[1740396685359,3.9449,158.36,158.25,35.8313606]
[1740396685563,1.9513,158.36,158.26,1.9569]
[1740396685758,6.3139,158.35,158.28,35.8313606]
[1740396685956,46.1913606,158.41,158.3,0.04395046]
[1740396686156,1.9513,158.4,158.28,35.8313606]
[1740396686361,0.04744658,158.37,158.27,1.824]
[1740396686660,1.9513,158.4,158.32,0.04012177]
[1740396686854,6.3145,158.33,158.32,0.04012177]
[1740396687657,0.04357479,158.34,158.32,0.04012177]
[1740396687857,6.35767479,158.34,158.32,0.04012177]
[1740396689862,6.3145,158.33,158.32,0.04012177]
[1740396693264,0.04357479,158.34,158.32,0.04012177]
[1740396693567,223.72705546,158.44,158.33,22.40705546]
[1740396693763,34.54485546,158.44,158.33,22.40705546]
[1740396693963,6.3122,158.39,158.36,6.3132]
[1740396694461,24.22485546,158.44,158.35,28.72055546]
[1740396694769,0.04745674,158.39,158.36,0.04542939]
[1740396695168,6.35995674,158.39,158.36,6.35872939]
[1740396695565,0.04745674,158.39,158.37,6.3128]
[1740396695866,0.04745674,158.39,158.36,0.04542939]
[1740396696067,1.9164,158.46,158.36,0.04542939]
[1740396696266,6.3113,158.42,158.35,3.8213]
[1740396697069,1.9164,158.46,158.35,3.8213]
[1740396697271,0.04372019,158.4,158.37,35.86251312]
[1740396697465,1.8178,158.48,158.35,3.8213]
[1740396697667,0.04835758,158.4,158.37,6.35325495]
[1740396697863,6.3113,158.41,158.37,6.3128]
[1740396698059,0.0464919,158.4,158.37,35.86539904]
[1740396698361,6.3104,158.44,158.39,6.3121]
[1740396698567,1.8178,158.48,158.39,6.3121]
[1740396698871,1.8178,158.48,158.37,35.81703963]
[1740396699068,1.9175,158.5,158.37,35.81703963]
[1740396699266,48.42873963,158.55,158.4,35.81703963]
[1740396699466,1.12280058,158.54,158.4,35.81703963]
[1740396699672,0.04475681,158.49,158.46,0.04433509]
[1740396702471,0.04475681,158.49,158.47,6.3088]
[1740396704070,6.3056,158.56,158.51,6.3069]
[1740396704880,6.3056,158.56,158.49,35.81703963]
[1740396705269,1.8175,158.63,158.52,35.81703963]
[1740396705270,0.04313769,158.54,158.52,35.81703963]
[1740396705467,1.8175,158.63,158.55,6.3057]
[1740396706175,18.8975,158.72,158.58,6.3042]
[1740396706380,40.85865443,158.71,158.58,42.12123963]
[1740396706575,0.04148828,158.67,158.63,0.0457723]
[1740396707272,3.1092475,158.67,158.63,0.0457723]
[1740396707572,1.12178955,158.66,158.63,7.23e-05]
[1740396707876,6.3021,158.64,158.63,7.23e-05]
[1740396708077,16.6421,158.64,158.63,7.23e-05]
[1740396708278,11.46184069,158.64,158.49,35.81703963]
[1740396708479,6.3052,158.57,158.52,6.3069]
[1740396708879,6.3053,158.56,158.52,6.3069]
[1740396709178,6.3053,158.56,158.51,6.3073]
[1740396709379,6.3053,158.56,158.52,0.04530323]
[1740396709380,0.04272414,158.56,158.52,0.04530323]
[1740396710180,6.3065,158.53,158.52,0.04530323]
[1740396710776,6.3065,158.53,158.52,3.23e-06]
[1740396711271,6.31,158.45,158.41,1.8137]
[1740396711474,35.81703963,158.53,158.41,1.8137]
[1740396711782,3.8129,158.55,158.43,35.81703963]
[1740396712075,6.3075,158.51,158.46,6.3089]
[1740396712281,3.8129,158.55,158.43,35.81703963]
[1740396712576,0.04513298,158.51,158.47,0.04436224]
[1740396715581,6.308,158.5,158.47,0.04436224]
[1740396716882,0.04513298,158.51,158.47,0.04436224]
[1740396717082,0.04513298,158.51,158.49,6.308]
[1740396717278,0.04513298,158.51,158.47,0.04436224]
[1740396718284,6.3082,158.49,158.47,0.04436224]
[1740396718480,0.04513298,158.51,158.47,0.04436224]
[1740396718985,6.3084,158.49,158.47,0.04436224]
[1740396719286,0.04513298,158.51,158.47,0.04436224]
[1740396719585,6.3085,158.48,158.47,0.04436224]
[1740396720790,0.04513298,158.51,158.41,1.8137]
[1740396720976,6.3106,158.43,158.4,35.81703963]
[1740396721382,1.9635,158.5,158.39,6.3121]
[1740396721689,1.9635,158.5,158.37,35.81703963]
[1740396721690,6.311,158.42,158.37,35.81703963]
[1740396722084,0.04001768,158.41,158.38,0.04186544]
[1740396722287,6.3116,158.41,158.37,35.81703963]
[1740396722587,6.35341212,158.41,158.38,0.04817329]
[1740396722987,0.04181212,158.41,158.38,0.04817329]
[1740396723884,1.9635,158.5,158.4,35.81703963]
[1740396724280,6.3106,158.43,158.4,35.81703963]
[1740396724484,1.9635,158.5,158.4,35.81703963]
[1740396724789,6.3101,158.45,158.41,6.3112]
[1740396724990,1.9635,158.5,158.41,6.3112]
[1740396725193,0.04387441,158.45,158.41,0.04625906]
[1740396726088,0.04387441,158.45,158.42,6.3108]
[1740396726393,0.04387441,158.45,158.41,0.04625906]
[1740396726788,0.04387441,158.45,158.43,6.3103]
[1740396727193,35.81703963,158.56,158.43,35.81703963]
[1740396727394,14.1129,158.55,158.43,35.81703963]
[1740396727782,6.3079,158.5,158.46,6.309]
[1740396728096,226.81703963,158.62,158.49,35.81703963]
[1740396728395,0.04009689,158.57,158.54,0.04828978]
[1740396728789,6.3057,158.55,158.54,0.04828978]
[1740396728991,0.04009689,158.57,158.54,0.04828978]
[1740396729885,6.3057,158.55,158.54,0.04828978]
[1740396730194,0.04009689,158.57,158.47,6.3088]
[1740396730493,35.81703963,158.59,158.5,6.3076]
[1740396730795,5.5755,158.62,158.5,6.3076]
[1740396730996,1.12214679,158.61,158.5,6.3076]
[1740396731294,0.04066406,158.57,158.54,0.0445795]
[1740396732090,6.3057,158.55,158.54,0.0445795]
[1740396734702,6.3074,158.51,158.48,6.3082]
[1740396735398,6.3062,158.54,158.51,6.3073]
[1740396735696,6.3062,158.54,158.49,35.81703963]
[1740396735894,6.35247932,158.54,158.51,0.04337803]
[1740396736603,0.04627932,158.54,158.51,6.35027803]
[1740396737198,0.04627932,158.54,158.51,0.04337803]
[1740396737398,0.04627932,158.54,158.52,6.3069]
[1740396738201,0.04627932,158.54,158.51,0.04337803]
[1740396739005,6.3067,158.53,158.51,0.04337803]
[1740396742400,6.3069,158.52,158.51,0.04337803]
[1740396742799,0.04627932,158.54,158.44,8.42698249]
[1740396743001,3.8774,158.54,158.44,8.42698249]
[1740396743593,3.8774,158.54,158.45,6.3096]
[1740396744106,0.04851615,158.51,158.48,0.04118497]
[1740396744405,1.12223345,158.61,158.47,35.81703963]
[1740396744601,0.04244076,158.51,158.48,0.04507197]
[1740396744904,1.12223345,158.61,158.48,0.0457454]
[1740396745100,0.0402794,158.51,158.48,0.0457454]
[1740396745295,1.12223345,158.61,158.47,35.81703963]
[1740396745604,6.3061,158.54,158.5,6.3076]
[1740396745805,6.3061,158.54,158.52,0.04681607]
[1740396746802,6.3065,158.53,158.52,0.04681607]
[1740396746999,0.04118059,158.56,158.52,0.04681607]
[1740396747805,6.3063,158.54,158.52,0.04681607]
[1740396749506,0.04118059,158.56,158.52,0.04681607]
[1740396750108,6.3065,158.53,158.52,0.04681607]
[1740396751906,0.04118059,158.56,158.44,35.81703963]
[1740396752110,35.81703963,158.57,158.44,35.81703963]
[1740396752410,6.3084,158.49,158.44,35.81703963]
[1740396752612,6.3084,158.49,158.46,6.3091]
[1740396752905,6.3084,158.49,158.46,6.34565377]
[1740396753212,0.04299331,158.49,158.46,0.03655377]
[1740396753408,0.04299331,158.49,158.46,6.34585377]
[1740396753409,6.35129331,158.49,158.46,6.34585377]
[1740396753713,0.04299331,158.49,158.46,0.03655377]
[1740396753905,6.3085,158.48,158.46,0.03655377]
[1740396754302,0.04299331,158.49,158.46,0.03655377]
[1740396754904,6.3089,158.47,158.46,0.03655377]
[1740396757010,0.04299331,158.49,158.38,71.76750064]
[1740396757208,35.81703963,158.51,158.38,71.76750064]
[1740396757609,6.3106,158.43,158.38,71.76750064]
[1740396758005,35.81703963,158.51,158.38,71.76750064]
[1740396758215,6.3099,158.45,158.38,37.74993963]
[1740396758414,0.0481689,158.46,158.38,1.9329]
[1740396758716,6.3108,158.43,158.38,1.9329]
[1740396759115,0.04627137,158.42,158.39,6.3118]
[1740396759316,6.3107,158.43,158.39,6.3118]
[1740396759514,0.04649165,158.42,158.39,6.3118]
[1740396760210,6.35759165,158.42,158.39,6.3118]
[1740396760415,0.04649165,158.42,158.39,6.3118]
[1740396760715,0.04649165,158.42,158.39,35.81703963]
[1740396760915,0.04649165,158.42,158.38,1.9329]
[1740396761411,0.04649165,158.42,158.32,69.83460064]
[1740396761618,3.795,158.44,158.32,34.01756101]
[1740396761816,0.04863346,158.39,158.33,6.3141]
[1740396762018,0.04863346,158.39,158.32,34.01756101]
[1740396762815,0.04863346,158.39,158.32,40.33216101]
[1740396763118,0.04863346,158.39,158.32,34.01756101]
[1740396763414,6.3137,158.35,158.32,34.01756101]
[1740396763721,10.26,158.38,158.32,34.01756101]
[1740396763917,0.04711857,158.35,158.32,34.01756101]
[1740396764117,0.04711857,158.35,158.32,27.97956101]
[1740396764307,0.04711857,158.35,158.31,67.09383602]
[1740396764514,0.04711857,158.35,158.27,6.3166]
[1740396764720,10.26,158.38,158.27,6.3166]
[1740396764920,6.3151,158.32,158.27,6.3166]
[1740396765324,0.04127287,158.33,158.26,6.3172]
[1740396765619,10.26,158.38,158.26,6.3172]
[1740396765820,0.04238326,158.31,158.26,6.3172]
[1740396766323,6.3158,158.3,158.25,6.3176]